bitfinex/quotes_SOLUSD_20250219
["timestamp","ask_amount","ask_price","bid_price","bid_amount"]
[1739928983749,13.35720742,168.58,168.57,0.063]
[1739928983977,230.55720742,168.58,168.57,0.063]
[1739928985578,13.35720742,168.58,168.57,0.063]
[1739928985755,13.35720742,168.58,168.54,94.14]
[1739928985756,11.84910742,168.55,168.54,94.14]
[1739928986270,11.84910742,168.55,168.48,16.52910742]
[1739928986442,11.84910742,168.54,168.47,22.46470742]
[1739928986779,12.96188157,168.54,168.47,22.46470742]
[1739928987070,12.96188157,168.54,168.47,10.6156]
[1739928987246,12.96188157,168.54,168.47,22.46470742]
[1739928987936,11.84910742,168.55,168.48,11.84910742]
[1739928988141,20.0,168.56,168.52,11.84910742]
[1739928988761,16.33378093,168.58,168.51,11.84910742]
[1739928988955,11.84910742,168.57,168.51,11.84910742]
[1739928989376,11.84910742,168.57,168.5,11.84910742]
[1739928989559,11.84910742,168.55,168.48,11.84910742]
[1739928989749,1.11272843,168.54,168.48,11.84910742]
[1739928989945,217.2,168.53,168.47,11.84910742]
[1739928990465,82.7,168.52,168.47,11.84910742]
[1739928990775,82.7,168.52,168.46,11.84910742]
[1739928990943,82.7,168.52,168.45,100.0963]
[1739928990944,1.5743,168.5,168.45,94.16]
[1739928991145,11.84910742,168.48,168.45,94.16]
[1739928991481,11.84910742,168.46,168.4,0.063]
[1739928991657,11.84910742,168.45,168.4,0.063]
[1739928992945,217.2,168.44,168.4,0.063]
[1739928993156,13.38770742,168.42,168.4,0.063]
[1739928993406,19.01741301,168.41,168.4,0.063]
[1739928995985,6.0547,168.41,168.4,0.063]
[1739928996884,14.50129005,168.42,168.4,0.063]
[1739928997195,1.5386,168.42,168.4,0.063]
[1739928997604,14.50117109,168.42,168.4,0.063]
[1739928997765,31.84910742,168.41,168.4,0.063]
[1739928999183,22.65206367,168.42,168.4,0.063]
[1739928999358,11.84910742,168.41,168.4,0.063]
[1739929000101,38.11006337,168.41,168.4,0.063]
[1739929000398,23.69821484,168.4,168.39,0.063]
[1739929000577,24.812065,168.4,168.39,0.063]
[1739929000775,12.96295758,168.4,168.39,0.063]
[1739929001076,11.84910742,168.41,168.39,0.063]
[1739929001287,13.38770742,168.42,168.39,0.063]
[1739929001668,1.5386,168.42,168.39,0.063]
[1739929002888,21.5386,168.42,168.39,0.063]
[1739929003088,33.38770742,168.42,168.39,0.063]
[1739929003289,11.84910742,168.41,168.39,0.063]
[1739929004173,33.38770742,168.42,168.39,0.063]
[1739929006997,20.0,168.42,168.39,0.063]
[1739929007678,134.5,168.41,168.39,0.063]
[1739929009708,146.34910742,168.41,168.39,0.063]
[1739929011599,134.5,168.41,168.39,0.063]
[1739929024727,134.53,168.41,168.39,0.063]
[1739929026115,148.07063871,168.41,168.39,0.063]
[1739929026616,140.468,168.41,168.39,0.063]
[1739929029848,134.53,168.41,168.39,0.063]
[1739929030049,134.53,168.41,168.39,7.66563871]
[1739929030257,0.03,168.41,168.4,7.60263871]
[1739929030544,0.03,168.41,168.4,51.42504208]
[1739929030920,0.03,168.41,168.4,57.36324208]
[1739929031125,0.03,168.41,168.4,63.31224208]
[1739929031327,0.03,168.41,168.4,57.36324208]
[1739929034618,0.03,168.41,168.4,43.08734287]
[1739929035993,0.03,168.42,168.41,13.41184853]
[1739929036156,82.7,168.48,168.46,6.212]
[1739929036359,82.7,168.55,168.48,13.41184853]
[1739929036680,82.7,168.54,168.53,11.86864717]
[1739929037554,82.7,168.54,168.49,11.86864717]
[1739929037865,217.2,168.53,168.48,11.86864717]
[1739929038060,223.1337,168.53,168.48,11.86864717]
[1739929041062,217.2,168.53,168.51,11.86864717]
[1739929041262,82.7,168.56,168.52,25.2804957]
[1739929041446,82.7,168.56,168.54,11.86864717]
[1739929041774,82.7,168.55,168.47,98.92]
[1739929041953,82.7,168.55,168.51,13.41184853]
[1739929042573,82.7,168.55,168.5,13.41184853]
[1739929042954,82.7,168.55,168.54,11.86864717]
[1739929046090,82.7,168.55,168.51,11.86864717]
[1739929046402,82.7,168.54,168.51,11.86864717]
[1739929046571,82.7,168.54,168.52,11.86864717]
[1739929047369,82.7,168.54,168.51,11.86864717]
[1739929049290,217.2,168.53,168.49,11.86864717]
[1739929049471,82.7,168.56,168.52,11.86864717]
[1739929049678,0.03,168.57,168.56,13.41184853]
[1739929049886,0.03,168.57,168.56,25.2804957]
[1739929050683,0.03,168.57,168.56,31.2130957]
[1739929052503,0.03,168.57,168.56,11.86864717]
[1739929060381,0.03,168.57,168.56,17.80124717]
[1739929062581,0.03,168.57,168.56,11.86864717]
[1739929064206,82.73,168.57,168.56,11.86864717]
[1739929064410,82.73,168.57,168.55,11.86864717]
[1739929064579,217.2,168.56,168.54,94.2]
[1739929065408,217.2,168.55,168.54,94.2]
[1739929065687,224.78954239,168.55,168.48,7.58954239]
[1739929065897,225.90233348,168.54,168.48,7.58954239]
[1739929066087,224.78954239,168.54,168.48,7.58954239]
[1739929066703,5.9336,168.53,168.48,31.86457826]
[1739929067834,217.2,168.54,168.5,11.86457826]
[1739929067989,82.7,168.54,168.53,11.86457826]
[1739929068191,134.5,168.56,168.53,11.86457826]
[1739929068621,134.5,168.56,168.54,11.86457826]
[1739929069520,134.5,168.56,168.55,11.86457826]
[1739929071402,134.5,168.56,168.54,11.86457826]
[1739929072325,134.53,168.56,168.54,11.86457826]
[1739929073636,140.4626,168.56,168.53,11.86457826]
[1739929075628,140.4626,168.56,168.54,11.86457826]
[1739929076061,82.7,168.55,168.54,11.86457826]
[1739929077623,88.6329,168.55,168.52,11.86457826]
[1739929080456,88.6329,168.55,168.51,11.86457826]
[1739929081955,217.2,168.54,168.51,11.86457826]
[1739929082124,217.2,168.54,168.53,11.86457826]
[1739929082324,82.7,168.54,168.53,11.86457826]
[1739929083119,82.7,168.54,168.51,11.86457826]
[1739929083345,82.7,168.54,168.52,11.86457826]
[1739929085055,82.7,168.54,168.53,11.86457826]
[1739929085824,82.7,168.54,168.52,11.86457826]
[1739929088039,82.7,168.53,168.52,11.86457826]
[1739929089349,140.4331,168.55,168.5,94.18]
[1739929089531,153.90757826,168.55,168.5,94.18]
[1739929090643,142.043,168.55,168.5,94.18]
[1739929093856,82.7,168.52,168.5,94.18]
[1739929094263,82.7,168.51,168.5,94.18]
[1739929094444,82.7,168.51,168.46,16.52457826]
[1739929094632,217.2,168.5,168.44,5.9366]
[1739929094828,82.7,168.49,168.45,11.86457826]
[1739929095869,217.2,168.48,168.42,11.92757826]
[1739929096532,5.9357,168.47,168.42,11.92757826]
[1739929097761,5.9357,168.47,168.43,11.86457826]
[1739929097970,217.2,168.48,168.45,11.86457826]
[1739929099266,217.2,168.48,168.44,11.86457826]
[1739929099643,217.2,168.48,168.45,11.86457826]
[1739929099964,82.7,168.47,168.45,11.86457826]
[1739929101763,82.7,168.47,168.43,11.86457826]
[1739929101764,88.6357,168.47,168.43,11.86457826]
[1739929102075,217.2,168.46,168.42,0.063]
[1739929102243,229.06457826,168.46,168.42,0.063]
[1739929104065,5.9364,168.45,168.42,0.063]
[1739929104250,217.2,168.44,168.42,0.063]
[1739929104752,229.06457826,168.43,168.4,0.063]
[1739929104954,11.86457826,168.41,168.39,0.063]
[1739929105153,217.2,168.4,168.39,0.063]
[1739929105745,217.2,168.4,168.39,11.92757826]
[1739929108139,217.2,168.4,168.39,17.86607826]
[1739929108646,82.7,168.4,168.39,11.92757826]
[1739929108853,82.7,168.43,168.39,31.27792679]
[1739929109048,82.7,168.47,168.42,25.27642679]
[1739929109378,82.7,168.46,168.45,11.86457826]
[1739929109950,134.5,168.48,168.45,11.86457826]
[1739929112151,134.5,168.48,168.44,11.86457826]
[1739929112771,140.4355,168.48,168.43,11.86457826]
[1739929112944,82.7,168.45,168.41,11.86457826]
[1739929113145,82.7,168.45,168.4,11.86457826]
[1739929113352,82.7,168.45,168.39,94.303]
[1739929113353,82.7,168.45,168.39,106.16757826]
[1739929113577,217.2,168.44,168.39,106.16757826]
[1739929113763,223.1371,168.44,168.39,106.16757826]
[1739929114170,217.2,168.43,168.39,94.303]
[1739929114372,230.17805728,168.42,168.39,94.303]
[1739929114562,11.86457826,168.4,168.34,0.063]
[1739929114761,230.17839136,168.39,168.34,0.063]
[1739929114954,11.86457826,168.36,168.34,0.063]
[1739929115161,229.06457826,168.35,168.3,94.303]
[1739929115368,11.86457826,168.32,168.3,0.063]
[1739929115571,229.06457826,168.31,168.3,0.063]
[1739929115749,17.80597826,168.31,168.3,0.063]
[1739929115948,18.9203244,168.31,168.27,0.063]
[1739929116157,31.86457826,168.28,168.27,0.063]
[1739929116368,32.97912241,168.28,168.25,0.063]
[1739929116678,11.86457826,168.26,168.25,0.063]
[1739929116852,11.86457826,168.24,168.23,0.063]
[1739929117057,20.0,168.22,168.21,0.063]
[1739929117254,32.97949234,168.22,168.19,0.063]
[1739929117471,11.86457826,168.21,168.19,0.063]
[1739929117980,17.80987826,168.2,168.19,0.063]
[1739929118395,5.9453,168.2,168.19,0.063]
[1739929119801,25.00489376,168.2,168.17,0.063]
[1739929119977,237.37467842,168.19,168.17,0.063]
[1739929120173,19.05959376,168.18,168.17,0.063]
[1739929120371,20.0,168.17,168.12,94.28]
[1739929120678,39.05959376,168.13,168.12,94.28]
[1739929120874,39.05959376,168.13,168.05,23.71959376]
[1739929121086,237.37521945,168.12,168.05,23.71959376]
[1739929121296,236.25959376,168.11,168.05,19.05959376]
[1739929121503,20.0,168.05,168.0,19.05959376]
[1739929121709,217.2,168.04,167.99,19.05959376]
[1739929122004,236.25959376,168.03,167.97,19.05959376]
[1739929122172,237.37574663,168.02,167.96,19.05959376]
[1739929122375,82.7,168.02,167.97,19.05959376]
[1739929122785,217.2,168.01,167.97,19.05959376]
[1739929122983,217.2,168.0,167.96,19.05959376]
[1739929123293,217.2,168.0,167.95,19.05959376]
[1739929123498,217.2,168.0,167.96,19.05959376]
[1739929124000,217.2,168.0,167.98,19.05959376]
[1739929124182,217.2,168.0,167.99,19.05959376]
[1739929124674,217.2,168.0,167.98,19.05959376]
[1739929124870,217.2,168.0,167.99,19.05959376]
[1739929126071,82.7,168.0,167.99,38.42414229]
[1739929126301,82.7,168.0,167.99,25.01229376]
[1739929128312,134.5,168.03,167.99,19.05959376]
[1739929128617,134.5,168.03,167.98,5.953]
[1739929128618,134.5,168.03,168.0,19.05959376]
[1739929128805,134.5,168.03,167.97,19.05959376]
[1739929129099,19.05959376,168.04,167.97,19.05959376]
[1739929129100,82.7,167.99,167.97,19.05959376]
[1739929129403,82.7,167.98,167.97,19.05959376]
[1739929129591,134.5,168.0,167.96,19.05959376]
[1739929129789,134.5,168.0,167.93,94.32]
[1739929129790,82.7,167.97,167.94,19.05959376]
[1739929130004,1.0,168.03,167.93,113.37959376]
[1739929130005,217.2,167.96,167.93,113.37959376]
[1739929130921,217.2,167.95,167.93,113.37959376]
[1739929131283,217.2,167.94,167.93,94.32]
[1739929131482,217.2,167.94,167.87,5.9569]
[1739929131678,217.2,167.93,167.89,19.05959376]
[1739929131909,82.7,167.92,167.9,19.05959376]
[1739929132208,82.7,167.91,167.9,19.05959376]
[1739929132395,82.7,167.91,167.89,19.05959376]
[1739929132595,82.7,167.91,167.86,19.05959376]
[1739929132811,102.87656066,167.91,167.84,113.47959376]
[1739929132982,82.7,167.9,167.85,19.05959376]
[1739929133183,1.11702213,167.89,167.84,94.42]
[1739929133523,19.05959376,167.88,167.84,94.42]
[1739929133891,19.05959376,167.89,167.84,94.42]
[1739929134214,101.75959376,167.9,167.84,113.47959376]
[1739929134411,101.75959376,167.9,167.84,94.42]
[1739929134711,20.17666741,167.89,167.84,94.42]
[1739929135089,102.87679429,167.9,167.84,94.42]
[1739929135404,19.05959376,167.88,167.84,94.42]
[1739929135592,20.1768394,167.87,167.84,94.42]
[1739929135792,19.05959376,167.86,167.84,94.42]
[1739929136002,19.05959376,167.86,167.82,0.063]
[1739929136306,19.05959376,167.84,167.82,0.063]
[1739929136509,20.17717575,167.83,167.76,19.05959376]
[1739929136708,19.05959376,167.81,167.75,94.5]
[1739929136896,19.05959376,167.79,167.75,94.5]
[1739929137292,20.17733722,167.82,167.76,19.05959376]
[1739929137487,19.05959376,167.81,167.75,113.55959376]
[1739929137690,1.11769674,167.8,167.75,94.5]
[1739929138316,19.05959376,167.77,167.7,19.05959376]
[1739929138501,20.17748074,167.76,167.69,19.05959376]
[1739929138706,27.79685061,167.78,167.71,19.05959376]
[1739929138907,4.68,167.78,167.73,19.05959376]
[1739929139101,19.05959376,167.8,167.73,19.05959376]
[1739929139308,1.11769359,167.79,167.73,19.05959376]
[1739929139511,20.17736186,167.8,167.73,19.05959376]
[1739929139808,20.17732219,167.81,167.75,19.05959376]
[1739929140014,40.17732219,167.82,167.75,19.05959376]
[1739929140214,19.05959376,167.81,167.74,19.05959376]
[1739929140415,20.17741476,167.8,167.73,19.05959376]
[1739929140784,19.05959376,167.79,167.73,19.05959376]
[1739929140989,1.11780192,167.82,167.76,19.05959376]
[1739929141495,82.7,167.85,167.81,19.05959376]
[1739929142508,82.7,167.85,167.77,13.41184853]
[1739929142807,82.7,167.85,167.83,19.05959376]
[1739929143214,82.7,167.84,167.83,19.05959376]
[1739929143637,82.7,167.84,167.82,19.05959376]
[1739929143819,82.7,167.83,167.82,19.05959376]
[1739929144500,82.7,167.83,167.78,5.9598]
[1739929144710,82.7,167.83,167.8,19.05959376]
[1739929145116,82.7,167.83,167.78,19.05959376]
[1739929146830,19.05959376,167.81,167.75,113.68259376]
[1739929146999,19.05959376,167.79,167.75,94.623]
[1739929147192,19.05959376,167.78,167.75,94.623]
[1739929147795,1.11767683,167.8,167.75,0.063]
[1739929148001,19.05959376,167.77,167.75,0.063]
[1739929148308,20.17756446,167.77,167.75,0.063]
[1739929148513,19.05959376,167.78,167.75,0.063]
[1739929148818,19.05959376,167.76,167.69,19.05959376]
[1739929149018,19.05959376,167.73,167.66,113.63959376]
[1739929149223,20.17784576,167.72,167.66,94.58]
[1739929149726,19.05959376,167.71,167.66,94.58]
[1739929150032,20.17795568,167.7,167.66,94.58]
[1739929150233,19.05959376,167.67,167.58,0.063]
[1739929150402,19.05959376,167.69,167.62,19.05959376]
[1739929150603,23.09768153,167.71,167.64,19.05959376]
[1739929151327,23.09768153,167.71,167.65,19.05959376]
[1739929151629,19.05959376,167.7,167.64,19.05959376]
[1739929151835,23.09762827,167.71,167.64,19.05959376]
[1739929152009,2.91958304,167.71,167.66,19.05959376]
[1739929152210,2.66005537,167.72,167.66,19.05959376]
[1739929152405,1.5417,167.72,167.67,19.05959376]
[1739929152819,1.5417,167.72,167.66,19.05959376]
[1739929153636,4.13269001,167.73,167.67,19.05959376]
[1739929153935,20.67869376,167.78,167.71,19.05959376]
[1739929154141,1.6191,167.78,167.72,19.05959376]
[1739929154437,20.17769674,167.79,167.73,19.05959376]
[1739929155021,1.11810298,167.79,167.73,19.05959376]
[1739929155536,83.81810298,167.79,167.73,19.05959376]
[1739929155729,82.7,167.79,167.74,19.05959376]
[1739929156040,153.55959376,167.81,167.72,5.9622]
[1739929156041,82.7,167.8,167.76,19.05959376]
[1739929156215,82.7,167.79,167.77,19.05959376]
[1739929157812,82.7,167.79,167.76,19.05959376]
[1739929158920,82.7,167.79,167.77,19.05959376]
[1739929159123,82.7,167.78,167.77,19.05959376]
[1739929160541,134.5,167.8,167.77,19.05959376]
[1739929160945,134.5,167.8,167.73,5.9619]
[1739929160946,134.5,167.8,167.76,19.05959376]
[1739929161959,82.7,167.77,167.76,19.05959376]
[1739929162252,82.7,167.77,167.72,4.68]
[1739929162562,82.7,167.77,167.75,19.05959376]
[1739929162854,82.7,167.77,167.76,19.05959376]
[1739929163022,134.5,167.79,167.76,19.05959376]
[1739929166448,134.5,167.79,167.78,19.05959376]
[1739929167156,134.53,167.79,167.78,19.05959376]
[1739929167452,134.53,167.79,167.78,25.01969376]
[1739929167954,0.03,167.79,167.78,19.05959376]
[1739929168156,0.03,167.79,167.77,19.05959376]
[1739929168528,217.2,167.78,167.77,19.05959376]
[1739929169146,217.2,167.78,167.75,107.1575]
[1739929169147,217.2,167.78,167.75,100.5811]
[1739929169433,217.2,167.78,167.76,19.05959376]
[1739929169759,134.5,167.78,167.77,32.47144229]
[1739929169958,0.03,167.79,167.78,13.41184853]
[1739929170170,217.2,167.87,167.82,13.41184853]
[1739929170456,217.2,167.86,167.82,13.41184853]
[1739929170665,82.7,167.85,167.82,13.41184853]
[1739929170836,217.2,167.89,167.84,19.05959376]
[1739929171035,217.2,167.88,167.87,19.05959376]
[1739929171459,217.2,167.88,167.86,19.05959376]
[1739929172563,217.2,167.88,167.87,19.05959376]
[1739929173062,217.2,167.88,167.87,32.47144229]
[1739929173063,82.7,167.88,167.87,32.47144229]
[1739929173360,82.7,167.88,167.87,38.42834229]
[1739929174943,134.5,167.91,167.87,25.01649376]
[1739929175155,217.2,167.9,167.87,19.05959376]
[1739929175354,217.2,167.9,167.86,19.05959376]
[1739929175552,217.2,167.9,167.84,5.958]
[1739929175553,217.2,167.89,167.85,13.41184853]
[1739929176066,217.2,167.89,167.85,14.41184853]
[1739929176439,217.2,167.89,167.88,19.05959376]
[1739929176639,217.2,167.89,167.87,19.05959376]
[1739929177240,217.2,167.88,167.87,19.05959376]
[1739929177441,217.2,167.88,167.86,19.05959376]
[1739929177771,82.7,167.87,167.86,19.05959376]
[1739929177954,134.5,167.9,167.86,19.05959376]
[1739929178644,82.7,167.86,167.84,19.05959376]
[1739929179167,82.7,167.85,167.84,19.05959376]
[1739929179339,82.7,167.85,167.84,51.53103605]
[1739929179667,217.2,167.92,167.84,51.53103605]
[1739929179963,223.1552,167.92,167.86,19.05959376]
[1739929180272,1.11693777,167.91,167.85,19.05959376]
[1739929180663,5.9559,167.9,167.85,19.05959376]
[1739929180863,236.25959376,167.92,167.85,19.05959376]
[1739929181194,236.25959376,167.92,167.84,5.958]
[1739929181195,223.1552,167.92,167.87,19.05959376]
[1739929181369,20.17651068,167.91,167.84,19.05959376]
[1739929182576,5.9559,167.9,167.85,19.05959376]
[1739929182947,217.2,167.89,167.85,19.05959376]
[1739929183249,217.2,167.88,167.84,5.9579]
[1739929183449,82.7,167.87,167.82,5.9587]
[1739929183771,217.2,167.86,167.84,19.05959376]
[1739929184142,217.2,167.86,167.82,5.9587]
[1739929184341,217.2,167.86,167.83,19.05959376]
[1739929184541,217.2,167.85,167.83,19.05959376]
[1739929184964,217.2,167.85,167.84,19.05959376]
[1739929186455,217.2,167.85,167.84,32.47144229]
[1739929186769,217.2,167.85,167.84,38.42944229]
[1739929188690,187.3516,167.85,167.84,57.48903605]
[1739929188986,177.4516,167.94,167.85,14.41184853]
[1739929189183,177.4516,167.95,167.92,19.05959376]
[1739929189359,177.4516,167.95,167.9,19.05959376]
[1739929189360,177.4516,167.94,167.9,19.05959376]
[1739929189971,177.4516,167.93,167.87,94.58]
[1739929190176,177.4516,167.93,167.88,19.05959376]
[1739929190341,177.4516,167.92,167.88,19.05959376]
[1739929190542,177.4516,167.91,167.87,113.63959376]
[1739929190741,177.4516,167.9,167.87,113.63959376]
[1739929190982,177.4516,167.9,167.87,94.58]
[1739929191360,177.4516,167.89,167.86,23.73959376]
[1739929192379,177.4516,167.89,167.88,19.05959376]
[1739929192776,177.4516,167.89,167.88,38.42804229]
[1739929193099,177.4516,167.95,167.88,38.42804229]
[1739929193391,177.4516,167.95,167.93,19.05959376]
[1739929193581,177.4516,167.94,167.93,19.05959376]
[1739929193779,177.4516,167.94,167.92,19.05959376]
[1739929194189,82.73,167.96,167.93,32.47144229]
[1739929194386,82.73,167.96,167.95,32.47144229]
[1739929194567,82.73,167.96,167.95,19.05959376]
[1739929195379,82.73,167.96,167.95,25.01369376]
[1739929195980,82.73,167.96,167.95,5.9541]
[1739929196220,82.73,167.96,167.94,19.05959376]
[1739929196375,82.7,167.95,167.94,19.05959376]
[1739929197494,82.7,167.95,167.94,38.42594229]
[1739929200014,82.7,167.95,167.94,25.01409376]
[1739929200799,94.7816,167.96,167.94,25.01409376]
[1739929201004,94.7816,167.96,167.95,19.05959376]
[1739929201370,94.7816,167.96,167.95,25.01369376]
[1739929201773,94.7816,167.96,167.95,38.42554229]
[1739929201996,94.7816,167.96,167.95,25.01369376]
[1739929202175,94.7816,167.96,167.95,19.05959376]
[1739929202572,94.7816,167.96,167.95,25.01369376]
[1739929203090,94.7816,167.96,167.94,19.05959376]
[1739929203290,94.7816,167.96,167.94,25.01399376]
[1739929203606,94.7816,167.96,167.95,19.05959376]
[1739929205803,94.7816,167.96,167.92,94.54]
[1739929205981,82.7,167.95,167.92,94.54]
[1739929206305,82.7,167.95,167.92,119.55469376]
[1739929208203,82.7,167.95,167.93,19.05959376]
[1739929208499,82.7,167.95,167.94,19.05959376]
[1739929208700,82.7,167.95,167.93,19.05959376]
[1739929208904,82.7,167.95,167.92,119.55469376]
[1739929209790,177.4516,167.94,167.92,119.55469376]
[1739929210604,177.4516,167.94,167.92,112.43757006]
[1739929211105,177.4516,167.94,167.93,11.94247006]
[1739929211883,177.4516,167.94,167.93,17.89727006]
[1739929212101,177.4516,167.94,167.93,11.94247006]
[1739929212414,177.4516,167.94,167.92,17.89757006]
[1739929212577,177.4516,167.94,167.92,11.94247006]
[1739929212908,177.4516,167.93,167.89,94.52]
[1739929213989,177.4516,167.93,167.91,11.94247006]
[1739929214183,177.4516,167.93,167.92,11.94247006]
[1739929214698,177.4516,167.93,167.91,11.94247006]
[1739929215106,177.4516,167.93,167.9,11.94247006]
[1739929215485,177.4516,167.93,167.89,106.46247006]
[1739929215699,177.4516,167.93,167.89,112.41867006]
[1739929215905,177.4516,167.93,167.9,11.94247006]
[1739929216291,177.4516,167.93,167.91,11.94247006]
[1739929216701,177.4516,167.93,167.9,11.94247006]
[1739929217016,177.4516,167.93,167.89,17.89867006]
[1739929217183,177.4516,167.93,167.89,5.9562]
[1739929217383,177.4516,167.93,167.9,11.94247006]
[1739929218017,177.4516,167.93,167.89,11.94247006]
[1739929218389,177.4516,167.93,167.88,11.94247006]
[1739929218587,177.4516,167.92,167.88,11.94247006]
[1739929219600,177.4516,167.92,167.89,11.94247006]
[1739929219803,177.4516,167.91,167.85,94.52]
[1739929220112,11.94247006,167.86,167.79,17.96527006]
[1739929220315,177.4516,167.85,167.79,12.00547006]
[1739929220491,189.39407006,167.85,167.79,0.063]
[1739929220813,189.39407006,167.85,167.79,12.00547006]
[1739929221185,177.4516,167.84,167.79,12.00547006]
[1739929221606,177.4516,167.84,167.8,11.94247006]
[1739929221783,177.4516,167.84,167.81,11.94247006]
[1739929221984,177.4516,167.84,167.82,11.94247006]
[1739929223314,177.4516,167.84,167.81,11.94247006]
[1739929224493,177.4516,167.83,167.81,11.94247006]
[1739929225314,177.4516,167.83,167.82,11.94247006]
[1739929225483,82.7,167.83,167.82,25.35431859]
[1739929225683,177.4516,167.89,167.83,19.62554853]
[1739929225919,82.7,167.88,167.86,13.41184853]
[1739929226995,82.7,167.88,167.87,11.94247006]
[1739929227996,82.7,167.88,167.87,17.89937006]
[1739929228817,82.7,167.88,167.87,25.06903296]
[1739929229194,82.7,167.88,167.87,38.48088149]
[1739929230998,146.0446,167.92,167.91,20.0]
[1739929231320,0.03,167.93,167.91,52.52398149]
[1739929231524,0.03,167.93,167.92,19.11213296]
[1739929234025,0.03,167.93,167.91,43.79213296]
[1739929234225,0.03,167.93,167.91,23.79213296]
[1739929234416,0.03,167.93,167.91,4.68]
[1739929234728,179.3,167.92,167.89,19.11213296]
[1739929235105,179.3,167.92,167.88,19.11213296]
[1739929235600,179.3,167.91,167.88,19.11213296]
[1739929236919,179.3,167.91,167.87,10.6369]
[1739929237095,179.3,167.9,167.88,19.11213296]
[1739929237704,179.3,167.9,167.89,19.11213296]
[1739929237927,82.7,167.9,167.89,32.52398149]
[1739929238142,0.03,167.93,167.92,20.0]
[1739929238430,0.03,167.93,167.92,39.11213296]
[1739929239632,0.03,167.93,167.92,45.06733296]
[1739929241741,0.03,167.93,167.92,39.11213296]
[1739929242307,0.03,167.93,167.92,45.06733296]
[1739929242501,0.03,167.93,167.92,19.11213296]
[1739929242701,0.03,167.93,167.9,19.11213296]
[1739929243237,82.7,167.92,167.91,19.11213296]
[1739929243803,82.7,167.92,167.91,32.52398149]
[1739929244700,82.7,167.92,167.91,25.06763296]
[1739929248340,0.03,167.93,167.91,25.06763296]
[1739929248543,0.03,167.93,167.92,19.11213296]
[1739929250444,0.03,167.93,167.92,57.59131445]
[1739929250618,0.03,167.93,167.92,31.30459442]
[1739929251258,0.03,167.93,167.92,5.9552]
[1739929251450,0.03,167.93,167.92,17.89274589]
[1739929251744,0.03,167.93,167.92,11.93754589]
[1739929251954,0.03,167.93,167.91,11.93754589]
[1739929252831,0.03,167.93,167.88,4.68]
[1739929252832,152.5,167.92,167.89,11.93754589]
[1739929253152,152.5,167.92,167.9,0.063]
[1739929254445,152.5,167.91,167.9,12.00054589]
[1739929255121,0.03,167.93,167.9,12.00054589]
[1739929255122,69.8,167.92,167.9,12.00054589]
[1739929255321,69.8,167.92,167.91,11.93754589]
[1739929255545,0.03,167.93,167.91,11.93754589]
[1739929255723,0.03,167.93,167.92,23.87509178]
[1739929255928,0.03,167.93,167.92,11.93754589]
[1739929256524,0.03,167.93,167.92,17.89274589]
[1739929260936,0.03,167.93,167.92,31.30459442]
[1739929261262,0.03,167.93,167.92,37.25359442]
[1739929261750,82.7,167.95,167.94,20.0]
[1739929261931,82.7,167.95,167.94,45.34939442]
[1739929262628,82.7,167.95,167.94,51.30389442]
[1739929264657,0.03,168.02,168.0,13.41184853]
[1739929264658,76.802,168.02,168.0,13.41184853]
[1739929264855,76.802,168.02,168.01,16.61754589]
[1739929265061,0.03,168.05,168.01,16.61754589]
[1739929265062,76.832,168.05,168.01,30.02939442]
[1739929265236,76.832,168.05,168.04,11.93754589]
[1739929265626,46.9235,168.05,168.04,11.93754589]
[1739929266360,46.9235,168.08,168.04,25.34939442]
[1739929266658,46.9235,168.08,168.07,25.34939442]
[1739929268535,46.9235,168.08,168.07,11.93754589]